[Event "FRA-chT Top 12 2019"]
[Site "Brest"]
[Date "2019.05.26"]
[Round "9.5"]
[White "Degraeve, Jean-Marc"]
[Black "Lefebvre, Herve"]
[Result "1-0"]
[ECO "B51"]
[WhiteElo "2546"]
[BlackElo "2291"]
[Annotator "RC"]
[PlyCount "109"]
[EventDate "2019.05.18"]
[EventType "team-tourn"]
[EventCountry "FRA"]
[SourceTitle "playchess.com"]
[Source "ChessBase"]
[SourceQuality "1"]
[TimeControl "40/5400+30:1800+30"]

1. e4 {[%emt 0:00:00]} c5 {[%emt 0:00:00]} 2. Nf3 {[%emt 0:00:00]} d6 {[%emt 0:00:00]} 3. Bb5+ {[%emt 0:00:10]} Nd7 {[%emt 0:00:26]} 4. Ba4 {[%emt 0:02:11]} Ngf6 {[%emt 0:02:12]} 5. O-O {[%emt 0:02:18]} a6 {[%emt 0:14:24]} 6. c4 {[%emt 0:00:18]} e6 {[%emt 0:03:44]} 7. Nc3 {[%emt 0:03:49]} Be7 {[%emt 0:00:25]} 8. a3 {[%emt 0:08:41]} O-O {[%emt 0:00:47]} 9. d3 {[%emt 0:00:15]} b6 {[%emt 0:19:58]} 10. h3 {[%emt 0:01:09]} Bb7 {[%emt 0:01:20]} 11. Bf4 {[%emt 0:04:55]} d5 {[%emt 0:01:59]} 12. e5 {[%emt 0:03:00]} Ne8 {[%emt 0:00:10]} 13. cxd5 {[%emt 0:03:14]} exd5 {[%emt 0:00:08]} 14. d4 {[%emt 0:00:08]} Nc7 {[%emt 0:00:49]} 15. Bh2 {[%emt 0:11:40]} Ne6 {[%emt 0:02:12]} 16. Bc2 {[%emt 0:08:40]} Rc8 {[%emt 0:01:38]} 17. Qd2 {[%emt 0:03:14]} b5 {[%emt 0:13:16]} 18. Rad1 {[%emt 0:06:17]} Nb6 {[%emt 0:08:44]} 19. dxc5 {[%emt 0:00:42]} Bxc5 {[%emt 0:02:29]} 20. Bb1 {[%emt 0:04:28]} b4 {[%emt 0:10:50]} 21. axb4 {[%emt 0:08:46]} Bxb4 {[%emt 0:00:10]} 22. Qd3 {[%emt 0:03:21]} g6 {[%emt 0:00:06]} 23. Bg3 {[%emt 0:02:20]} Be7 {[%emt 0:13:33]} 24. Ba2 {[%emt 0:06:05]} Nc4 {[%emt 0:00:43]} 25. Nxd5 {[%emt 0:01:52]} Bxd5 {[%emt 0:01:40]} 26. Qxd5 {[%emt 0:00:04]} Qxd5 {[%emt 0:00:14]} 27. Rxd5 {[%emt 0:00:08]} Nxb2 28. Rd7 {[%emt 0:03:30]} Rfe8 {[%emt 0:00:15]} 29. Rb1 {[%emt 0:00:17]} Ba3 {[%emt 0:01:27]} 30. Bh4 {[%emt 0:01:30]} Rc6 {[%emt 0:00:35]} 31. Bf6 {[%emt 0:00:43]} Rec8 {[%emt 0:00:14]} 32. Ng5 {[%emt 0:03:18]} Nxg5 {[%emt 0:00:19]} 33. Bxg5 {[%emt 0:00:02]} Nc4 {[%emt 0:00:33]} 34. Bxc4 {[%emt 0:01:57]} Rxc4 {[%emt 0:00:04]} 35. Rbb7 {[%emt 0:00:05]} Rb4 {[%emt 0:00:35]} 36. Rxf7 {[%emt 0:02:14]} Rb1+ {[%emt 0:00:33]} 37. Kh2 {[%emt 0:00:38]} Rxb7 {[%emt 0:00:09]} 38. Rxb7 {[%emt 0:00:02]} Rc6 {[%emt 0:01:03]} 39. Bf6 {[%emt 0:03:31]} Bf8 {[%emt 0:00:19]} 40. f4 {[%emt 0:01:00]} Bh6 {[%emt 0:00:28]} 41. g3 {[%emt 0:31:37]} Bf8 {[%emt 0:06:53]} 42. Kg2 {[%emt 0:00:00]} a5 {[%emt 0:00:36]} 43. Ra7 {[%emt 0:00:00]} Bb4 {[%emt 0:00:04]} 44. Rg7+ {[%emt 0:00:00]} Kf8 {[%emt 0:00:05]} 45. Rxh7 {[%emt 0:00:00]} Ra6 46. h4 a4 {[%emt 0:02:58]} 47. h5 {[%emt 0:00:00]} gxh5 {[%emt 0:00:08]} 48. f5 {[%emt 0:00:00]} Bc3 {[%emt 0:00:55]} 49. Rc7 {[%emt 0:00:00]} Bb2 {[%emt 0:01:00]} 50. Bg7+ {[%emt 0:00:00]} Kg8 {[%emt 0:00:45]} 51. e6 {[%emt 0:00:00]} a3 {[%emt 0:02:53]} 52. Bxb2 {[%emt 0:00:00]} axb2 {[%emt 0:00:03]} 53. Rb7 {[%emt 0:00:00]} Ra7 {[%emt 0:05:57]} 54. Rxb2 {[%emt 0:00:00]} Kg7 {[%emt 0:00:08]} 55. Re2 {[%emt 0:00:00]} 1-0

[Event "FRA-chT Top 12 2019"]
[Site "Brest"]
[Date "2019.05.26"]
[Round "9.5"]
[White "Wirig, Anthony"]
[Black "Maze, Sebastien"]
[Result "1/2-1/2"]
[ECO "B31"]
[WhiteElo "2516"]
[BlackElo "2579"]
[Annotator "ChessBase"]
[PlyCount "48"]
[EventDate "2019.05.18"]
[EventType "team-tourn"]
[EventCountry "FRA"]
[SourceTitle "playchess.com"]
[Source "ChessBase"]
[SourceQuality "1"]
[TimeControl "40/5400+30:1800+30"]

1. e4 {[%emt 0:00:00]} c5 {[%emt 0:00:13]} 2. Nf3 {[%emt 0:00:00]} Nc6 {[%emt 0:00:04]} 3. Bb5 {[%emt 0:00:00]} g6 {[%emt 0:00:15]} 4. O-O {[%emt 0:00:18]} Bg7 {[%emt 0:00:04]} 5. c3 {[%emt 0:00:30]} Nf6 {[%emt 0:00:16]} 6. Re1 {[%emt 0:00:18]} O-O {[%emt 0:00:07]} 7. h3 {[%emt 0:00:11]} Qb6 {[%emt 0:00:06]} 8. Ba4 {[%emt 0:00:16]} d6 {[%emt 0:10:39]} 9. d3 {[%emt 0:05:53]} a6 {[%emt 0:02:01]} 10. Nbd2 {[%emt 0:06:34]} Qc7 {[%emt 0:00:34]} 11. Bxc6 {[%emt 0:15:06]} Qxc6 {[%emt 0:00:09]} 12. d4 {[%emt 0:00:06]} cxd4 {[%emt 0:00:45]} 13. cxd4 {[%emt 0:00:07]} Bd7 {[%emt 0:00:13]} 14. d5 {[%emt 0:06:30]} Qc7 {[%emt 0:03:11]} 15. Nb3 {[%emt 0:04:37]} Ba4 {[%emt 0:09:17]} 16. Bd2 {[%emt 0:00:54]} Rfc8 {[%emt 0:00:47]} 17. Bc3 {[%emt 0:03:00]} Qb6 {[%emt 0:11:03]} 18. Nfd2 {[%emt 0:09:32]} Bh6 {[%emt 0:02:41]} 19. Qf3 {[%emt 0:05:55]} Nd7 {[%emt 0:01:36]} 20. Qg3 {[%emt 0:19:49]} Ne5 {[%emt 0:18:32]} 21. Bd4 {[%emt 0:02:40]} Qb4 {[%emt 0:00:31]} 22. Bc3 {[%emt 0:00:50]} Qb6 {[%emt 0:02:47]} 23. Bd4 {[%emt 0:08:05]} Qb4 {[%emt 0:11:15]} 24. Bc3 {[%emt 0:00:08]} Qb6 {[%emt 0:00:20]} 1/2-1/2

[Event "FRA-chT Top 12 2019"]
[Site "Brest"]
[Date "2019.05.26"]
[Round "9.5"]
[White "Ludwig, Remi"]
[Black "Fedorchuk, Sergey A."]
[Result "0-1"]
[ECO "E12"]
[WhiteElo "2312"]
[BlackElo "2620"]
[Annotator "ChessBase"]
[PlyCount "114"]
[EventDate "2019.05.18"]
[EventType "team-tourn"]
[EventCountry "FRA"]
[SourceTitle "playchess.com"]
[Source "ChessBase"]
[SourceQuality "1"]
[TimeControl "40/5400+30:1800+30"]

1. d4 {[%emt 0:00:00]} Nf6 {[%emt 0:00:00]} 2. c4 {[%emt 0:00:00]} e6 {[%emt 0:00:00]} 3. Nf3 {[%emt 0:00:21]} b6 {[%emt 0:00:58]} 4. a3 {[%emt 0:00:47]} Bb7 {[%emt 0:01:53]} 5. Nc3 {[%emt 0:00:37]} d5 {[%emt 0:00:24]} 6. cxd5 {[%emt 0:00:41]} Nxd5 {[%emt 0:00:12]} 7. Qc2 {[%emt 0:00:11]} Be7 {[%emt 0:06:14]} 8. e4 {[%emt 0:00:27]} Nxc3 {[%emt 0:01:15]} 9. bxc3 {[%emt 0:00:06]} O-O {[%emt 0:00:10]} 10. Bd3 {[%emt 0:00:13]} c5 {[%emt 0:00:16]} 11. O-O Qc7 {[%emt 0:00:52]} 12. Qe2 {[%emt 0:00:32]} Nd7 {[%emt 0:01:48]} 13. a4 {[%emt 0:00:53]} Rfd8 {[%emt 0:00:47]} 14. Bd2 {[%emt 0:01:41]} Nf8 {[%emt 0:00:43]} 15. g3 {[%emt 0:00:37]} h6 {[%emt 0:03:23]} 16. h4 {[%emt 0:05:33]} Bd6 {[%emt 0:07:23]} 17. Be3 {[%emt 0:20:02]} Rac8 {[%emt 0:03:49]} 18. Rfc1 {[%emt 0:03:56]} Qc6 {[%emt 0:04:29]} 19. Nd2 {[%emt 0:14:40]} Qd7 {[%emt 0:09:00]} 20. e5 {[%emt 0:06:52]} Bxe5 {[%emt 0:08:19]} 21. Bxh6 {[%emt 0:05:31]} Bf6 {[%emt 0:00:34]} 22. Bg5 {[%emt 0:04:07]} Bxg5 {[%emt 0:02:43]} 23. hxg5 {[%emt 0:00:03]} cxd4 {[%emt 0:00:09]} 24. c4 {[%emt 0:00:23]} Rc5 {[%emt 0:01:14]} 25. f4 {[%emt 0:01:03]} e5 {[%emt 0:00:39]} 26. Nb3 {[%emt 0:04:11]} Qh3 {[%emt 0:02:48]} 27. Qh2 {[%emt 0:00:24]} Qxh2+ {[%emt 0:09:10]} 28. Kxh2 {[%emt 0:00:04]} Rc7 {[%emt 0:00:03]} 29. fxe5 {[%emt 0:00:10]} Re7 {[%emt 0:00:37]} 30. Re1 {[%emt 0:00:23]} g6 {[%emt 0:03:33]} 31. Be4 {[%emt 0:20:48]} Ne6 {[%emt 0:01:00]} 32. Kg2 {[%emt 0:03:29]} Nxg5 {[%emt 0:00:29]} 33. Bxb7 {[%emt 0:00:04]} Rxb7 {[%emt 0:00:05]} 34. Rad1 {[%emt 0:00:11]} Rc7 {[%emt 0:01:18]} 35. Nd2 {[%emt 0:00:18]} Rc5 {[%emt 0:00:48]} 36. Kf2 {[%emt 0:01:40]} Kg7 {[%emt 0:00:32]} 37. Rc1 {[%emt 0:01:45]} Rdc8 {[%emt 0:02:23]} 38. Rcd1 {[%emt 0:02:46]} Ne6 {[%emt 0:02:43]} 39. Re4 {[%emt 0:02:14]} Rd8 {[%emt 0:03:23]} 40. Ree1 {[%emt 0:01:03]} Ra5 {[%emt 0:00:47]} 41. Ra1 {[%emt 0:30:29]} Nc5 {[%emt 0:30:08]} 42. Ra3 {[%emt 0:00:11]} Rxa4 {[%emt 0:05:17]} 43. Rxa4 {[%emt 0:00:13]} Nxa4 {[%emt 0:00:03]} 44. Ra1 {[%emt 0:00:23]} Nc5 {[%emt 0:00:16]} 45. Rxa7 {[%emt 0:01:19]} Nd3+ {[%emt 0:00:35]} 46. Kf3 {[%emt 0:00:17]} Nxe5+ {[%emt 0:01:55]} 47. Ke4 {[%emt 0:00:08]} Nd7 {[%emt 0:00:35]} 48. Kd5 {[%emt 0:00:00]} d3 {[%emt 0:00:00]} 49. Kc6 {[%emt 0:00:00]} Ne5+ {[%emt 0:00:00]} 50. Kxb6 {[%emt 0:00:00]} Nxc4+ {[%emt 0:00:00]} 51. Nxc4 {[%emt 0:00:00]} d2 {[%emt 0:00:00]} 52. Nxd2 {[%emt 0:00:00]} Rxd2 {[%emt 0:00:00]} 53. Ra3 {[%emt 0:00:00]} f5 {[%emt 0:00:00]} 54. Kc5 {[%emt 0:00:00]} Kf6 {[%emt 0:00:00]} 55. Kc4 {[%emt 0:00:00]} Kg5 {[%emt 0:00:00]} 56. Kc3 {[%emt 0:00:00]} Rg2 {[%emt 0:00:00]} 57. Kd4 {[%emt 0:00:00]} Kg4 {[%emt 0:00:00]} 0-1

[Event "FRA-chT Top 12 2019"]
[Site "Brest"]
[Date "2019.05.26"]
[Round "9.6"]
[White "Gharamian, Tigran"]
[Black "Riff, Jean-Noel"]
[Result "1/2-1/2"]
[ECO "A01"]
[WhiteElo "2602"]
[BlackElo "2494"]
[Annotator "RC"]
[PlyCount "45"]
[EventDate "2019.05.18"]
[EventType "team-tourn"]
[EventCountry "FRA"]
[SourceTitle "playchess.com"]
[Source "ChessBase"]
[SourceQuality "1"]
[TimeControl "40/5400+30:1800+30"]

1. b3 {[%emt 0:00:00]} Nf6 {[%emt 0:00:12]} 2. Bb2 {[%emt 0:00:12]} g6 {[%emt 0:00:05]} 3. Nf3 {[%emt 0:02:02]} Bg7 {[%emt 0:02:23]} 4. e3 {[%emt 0:01:28]} O-O {[%emt 0:00:12]} 5. d4 {[%emt 0:00:25]} d6 {[%emt 0:05:31]} 6. Be2 {[%emt 0:01:15]} e5 {[%emt 0:02:31]} 7. dxe5 {[%emt 0:01:22]} Ng4 {[%emt 0:00:20]} 8. Nc3 {[%emt 0:00:39]} Nxe5 {[%emt 0:00:58]} 9. Nxe5 {[%emt 0:06:57]} Bxe5 {[%emt 0:02:06]} 10. Qd2 {[%emt 0:10:51]} Nd7 {[%emt 0:06:26]} 11. Rd1 {[%emt 0:17:41]} Nc5 {[%emt 0:04:39]} 12. Ba1 {[%emt 0:13:04]} Bf5 {[%emt 0:05:20]} 13. O-O {[%emt 0:03:16]} Re8 {[%emt 0:09:18]} 14. Bf3 {[%emt 0:09:30]} c6 {[%emt 0:01:18]} 15. Ne2 {[%emt 0:00:39]} Bxa1 {[%emt 0:03:04]} 16. Rxa1 {[%emt 0:00:06]} d5 {[%emt 0:01:11]} 17. Nd4 {[%emt 0:06:16]} Bd7 {[%emt 0:00:45]} 18. Rac1 {[%emt 0:03:25]} Ne6 {[%emt 0:02:40]} 19. c4 {[%emt 0:04:48]} Nxd4 {[%emt 0:00:45]} 20. exd4 {[%emt 0:02:03]} Be6 {[%emt 0:02:16]} 21. Rfe1 {[%emt 0:03:39]} Qd7 {[%emt 0:00:41]} 22. c5 {[%emt 0:01:35]} Bg4 {[%emt 0:00:43]} 23. Bxg4 {[%emt 0:01:27]} 1/2-1/2

[Event "FRA-chT Top 12 2019"]
[Site "Brest"]
[Date "2019.05.26"]
[Round "9.6"]
[White "Sulava, Nenad"]
[Black "Brochet, Philippe"]
[Result "1/2-1/2"]
[ECO "A06"]
[WhiteElo "2422"]
[BlackElo "2400"]
[Annotator "NA"]
[PlyCount "58"]
[EventDate "2019.05.18"]
[EventType "team-tourn"]
[EventCountry "FRA"]
[SourceTitle "playchess.com"]
[Source "ChessBase"]
[SourceQuality "1"]
[TimeControl "40/5400+30:1800+30"]

1. Nf3 {[%emt 0:00:00]} d5 {[%emt 0:01:09]} 2. e3 {[%emt 0:00:00]} Nf6 {[%emt 0:00:16]} 3. c4 {[%emt 0:00:00]} e6 {[%emt 0:00:07]} 4. b3 {[%emt 0:00:57]} c5 {[%emt 0:00:19]} 5. Bb2 {[%emt 0:00:11]} Nc6 {[%emt 0:00:10]} 6. cxd5 {[%emt 0:00:05]} exd5 {[%emt 0:00:09]} 7. Bb5 {[%emt 0:00:14]} Bd6 {[%emt 0:00:16]} 8. d4 {[%emt 0:00:22]} cxd4 {[%emt 0:05:23]} 9. Nxd4 {[%emt 0:00:07]} Bd7 {[%emt 0:01:37]} 10. O-O {[%emt 0:00:44]} O-O {[%emt 0:00:17]} 11. Nc3 {[%emt 0:02:52]} Re8 {[%emt 0:13:32]} 12. Rc1 {[%emt 0:08:53]} Qe7 {[%emt 0:04:09]} 13. Nf3 {[%emt 0:03:02]} a6 {[%emt 0:13:40]} 14. Bxc6 {[%emt 0:16:38]} bxc6 {[%emt 0:03:03]} 15. Qd3 {[%emt 0:01:35]} Bg4 {[%emt 0:12:21]} 16. Ne2 {[%emt 0:03:00]} Qe4 {[%emt 0:04:30]} 17. Qxe4 {[%emt 0:37:24]} dxe4 {[%emt 0:00:38]} 18. Bxf6 {[%emt 0:02:54]} exf3 {[%emt 0:04:49]} 19. gxf3 {[%emt 0:00:08]} Bh3 {[%emt 0:02:41]} 20. Rfd1 {[%emt 0:00:27]} Ba3 {[%emt 0:00:09]} 21. Bd4 {[%emt 0:00:05]} Bxc1 {[%emt 0:00:12]} 22. Rxc1 {[%emt 0:00:01]} Bd7 {[%emt 0:11:27]} 23. Rc5 {[%emt 0:04:58]} Re6 {[%emt 0:02:13]} 24. Nf4 {[%emt 0:03:20]} Rd6 {[%emt 0:00:18]} 25. h4 {[%emt 0:01:00]} Rb8 {[%emt 0:02:09]} 26. Ra5 {[%emt 0:03:35]} Bc8 {[%emt 0:00:38]} 27. Re5 {[%emt 0:00:13]} Bd7 {[%emt 0:08:00]} 28. Ra5 {[%emt 0:00:14]} Bc8 {[%emt 0:01:20]} 29. Re5 {[%emt 0:00:53]} Bd7 {[%emt 0:00:09]} 1/2-1/2

[Event "FRA-chT Top 12 2019"]
[Site "Brest"]
[Date "2019.05.26"]
[Round "9.6"]
[White "Vitoux, Colomban"]
[Black "Bressac, Stephane"]
[Result "1/2-1/2"]
[ECO "B07"]
[WhiteElo "2384"]
[BlackElo "2358"]
[Annotator "NA"]
[PlyCount "108"]
[EventDate "2019.05.18"]
[EventType "team-tourn"]
[EventCountry "FRA"]
[SourceTitle "playchess.com"]
[Source "ChessBase"]
[SourceQuality "1"]
[TimeControl "40/5400+30:1800+30"]

1. e4 {[%emt 0:00:00]} d6 {[%emt 0:00:00]} 2. d4 {[%emt 0:00:00]} Nf6 {[%emt 0:00:00]} 3. Nc3 {[%emt 0:00:00]} e5 {[%emt 0:00:02]} 4. Nge2 {[%emt 0:00:29]} c6 {[%emt 0:00:16]} 5. a4 {[%emt 0:00:21]} Be7 {[%emt 0:00:41]} 6. g3 {[%emt 0:00:15]} O-O {[%emt 0:00:08]} 7. Bg2 {[%emt 0:00:11]} Nbd7 {[%emt 0:01:43]} 8. O-O {[%emt 0:00:44]} b6 {[%emt 0:00:57]} 9. h3 {[%emt 0:02:32]} h5 {[%emt 0:01:30]} 10. Be3 {[%emt 0:04:33]} a6 {[%emt 0:01:05]} 11. d5 {[%emt 0:12:35]} Bb7 {[%emt 0:01:32]} 12. dxc6 {[%emt 0:05:21]} Bxc6 {[%emt 0:02:36]} 13. Nd5 {[%emt 0:01:33]} Nxd5 {[%emt 0:01:53]} 14. exd5 {[%emt 0:00:36]} Bb7 {[%emt 0:00:06]} 15. f4 {[%emt 0:07:14]} Bf6 {[%emt 0:12:10]} 16. c3 {[%emt 0:05:47]} Re8 {[%emt 0:21:02]} 17. fxe5 {[%emt 0:03:27]} Bxe5 {[%emt 0:02:55]} 18. Nd4 {[%emt 0:03:09]} g6 {[%emt 0:25:34]} 19. Nc6 {[%emt 0:22:50]} Qc7 {[%emt 0:08:24]} 20. Qf3 {[%emt 0:02:01]} Nf6 {[%emt 0:03:14]} 21. Nxe5 {[%emt 0:11:31]} Rxe5 {[%emt 0:00:04]} 22. Bd4 {[%emt 0:00:53]} Rf5 {[%emt 0:00:01]} 23. Qe3 {[%emt 0:09:34]} Nxd5 {[%emt 0:00:36]} 24. Qh6 {[%emt 0:00:26]} Re5 {[%emt 0:00:14]} 25. Rad1 {[%emt 0:03:31]} Rae8 {[%emt 0:00:39]} 26. Bxe5 {[%emt 0:00:42]} dxe5 {[%emt 0:00:54]} 27. Qd2 {[%emt 0:01:41]} e4 {[%emt 0:01:54]} 28. Qg5 {[%emt 0:01:12]} Qc5+ {[%emt 0:05:26]} 29. Rd4 {[%emt 0:00:05]} Nxc3 {[%emt 0:02:29]} 30. Qxc5 {[%emt 0:00:11]} bxc5 {[%emt 0:00:31]} 31. Rd7 {[%emt 0:00:10]} Bc8 {[%emt 0:00:27]} 32. Rdxf7 {[%emt 0:00:39]} Ne2+ {[%emt 0:00:17]} 33. Kh2 {[%emt 0:00:05]} Bf5 {[%emt 0:01:45]} 34. Rc7 {[%emt 0:00:05]} Nd4 {[%emt 0:01:08]} 35. Rxc5 {[%emt 0:01:24]} e3 {[%emt 0:00:01]} 36. Re1 {[%emt 0:01:11]} Nc2 {[%emt 0:01:21]} 37. Rxc2 {[%emt 0:00:56]} Bxc2 {[%emt 0:00:05]} 38. Bc6 {[%emt 0:00:26]} Re5 {[%emt 0:00:45]} 39. Kg2 {[%emt 0:00:22]} Kg7 {[%emt 0:02:58]} 40. Kf3 {[%emt 0:00:42]} e2 {[%emt 0:00:37]} 41. Kf2 {[%emt 0:05:49]} Bd1 {[%emt 0:01:04]} 42. Bf3 {[%emt 0:01:33]} Rf5 {[%emt 0:00:43]} 43. Ke3 {[%emt 0:04:08]} Rg5 {[%emt 0:00:36]} 44. Kf2 {[%emt 0:00:53]} Rf5 {[%emt 0:02:03]} 45. Ke3 {[%emt 0:00:07]} Bxa4 {[%emt 0:01:13]} 46. Bxe2 {[%emt 0:03:07]} Bb5 {[%emt 0:00:25]} 47. Bxb5 {[%emt 0:02:41]} Rxb5 {[%emt 0:00:06]} 48. Re2 {[%emt 0:04:22]} Rb3+ {[%emt 0:00:37]} 49. Kf4 {[%emt 0:01:45]} Rb4+ {[%emt 0:00:03]} 50. Kf3 {[%emt 0:00:11]} g5 {[%emt 0:00:14]} 51. Re7+ {[%emt 0:03:05]} Kf6 {[%emt 0:02:49]} 52. Ra7 {[%emt 0:00:08]} Rb3+ {[%emt 0:07:08]} 53. Ke4 {[%emt 0:00:30]} Rb4+ {[%emt 0:00:12]} 54. Kf3 {[%emt 0:00:05]} Ke5 {Ke4+} 1/2-1/2

[Event "FRA-chT Top 12 2019"]
[Site "Brest"]
[Date "2019.05.26"]
[Round "9.6"]
[White "Charmeteau, Sven"]
[Black "Cornette, Matthieu"]
[Result "0-1"]
[ECO "B03"]
[WhiteElo "2292"]
[BlackElo "2553"]
[Annotator "ChessBase"]
[PlyCount "60"]
[EventDate "2019.05.18"]
[EventType "team-tourn"]
[EventCountry "FRA"]
[SourceTitle "playchess.com"]
[Source "ChessBase"]
[SourceQuality "1"]
[TimeControl "40/5400+30:1800+30"]

1. e4 {[%emt 0:00:00]} Nf6 {[%emt 0:00:00]} 2. e5 {[%emt 0:00:00]} Nd5 {[%emt 0:00:00]} 3. d4 {[%emt 0:00:00]} d6 {[%emt 0:00:00]} 4. c4 {[%emt 0:00:40]} Nb6 {[%emt 0:00:05]} 5. exd6 {[%emt 0:00:07]} cxd6 {[%emt 0:00:55]} 6. Nc3 {[%emt 0:00:42]} g6 {[%emt 0:00:07]} 7. Be3 {[%emt 0:00:28]} Bg7 {[%emt 0:00:09]} 8. Rc1 {[%emt 0:00:39]} O-O {[%emt 0:00:23]} 9. b3 {[%emt 0:00:28]} Bf5 {[%emt 0:00:43]} 10. Nf3 {[%emt 0:07:02]} d5 {[%emt 0:00:36]} 11. c5 {[%emt 0:13:41]} Nc8 {[%emt 0:00:18]} 12. b4 {[%emt 0:00:44]} a6 {[%emt 0:05:20]} 13. Be2 {[%emt 0:06:24]} Nc6 {[%emt 0:02:02]} 14. a3 {[%emt 0:00:32]} Bg4 {[%emt 0:01:12]} 15. O-O {[%emt 0:01:43]} e6 {[%emt 0:05:56]} 16. Ne1 {[%emt 0:07:16]} Bxe2 {[%emt 0:01:03]} 17. Nxe2 {[%emt 0:00:11]} N8e7 {[%emt 0:01:06]} 18. Nc2 {[%emt 0:01:32]} Nf5 {[%emt 0:03:40]} 19. Qd3 {[%emt 0:02:34]} Qh4 {[%emt 0:11:16]} 20. Rb1 {[%emt 0:05:39]} Rfd8 {[%emt 0:04:44]} 21. Rfd1 {[%emt 0:01:00]} e5 {[%emt 0:05:30]} 22. Ne1 {[%emt 0:18:44]} Nxe3 {[%emt 0:16:14]} 23. fxe3 {[%emt 0:04:56]} Qh6 {[%emt 0:04:15]} 24. b5 {[%emt 0:03:36]} axb5 {[%emt 0:03:53]} 25. Rxb5 {[%emt 0:00:03]} Re8 {[%emt 0:06:46]} 26. Nc2 {[%emt 0:04:35]} exd4 {[%emt 0:00:15]} 27. exd4 {[%emt 0:00:20]} Re4 {[%emt 0:01:52]} 28. Rxb7 {[%emt 0:05:36]} Rae8 {[%emt 0:00:23]} 29. Ng3 {[%emt 0:00:41]} Bxd4+ {[%emt 0:01:03]} 30. Kh1 {[%emt 0:00:09]} Qxh2+ {[%emt 0:00:10]} 0-1

[Event "FRA-chT Top 12 2019"]
[Site "Brest"]
[Date "2019.05.26"]
[Round "9.6"]
[White "Iglesias, Joachim"]
[Black "Delorme, Axel"]
[Result "0-1"]
[ECO "A09"]
[WhiteElo "2276"]
[BlackElo "2489"]
[Annotator "ChessBase"]
[PlyCount "62"]
[EventDate "2019.05.18"]
[EventType "team-tourn"]
[EventCountry "FRA"]
[SourceTitle "playchess.com"]
[Source "ChessBase"]
[SourceQuality "1"]
[TimeControl "40/5400+30:1800+30"]

1. Nf3 {[%emt 0:00:00]} d5 {[%emt 0:00:00]} 2. c4 d4 {[%emt 0:00:00]} 3. b4 {[%emt 0:00:52]} Bg4 {[%emt 0:00:00]} 4. Qb3 {[%emt 0:01:55]} c6 {[%emt 0:01:50]} 5. Bb2 {[%emt 0:02:24]} Bxf3 {[%emt 0:02:13]} 6. Qxf3 {[%emt 0:04:18]} e5 {[%emt 0:01:24]} 7. c5 {[%emt 0:02:11]} a5 {[%emt 0:07:59]} 8. a3 {[%emt 0:06:00]} Nf6 {[%emt 0:05:22]} 9. e3 {[%emt 0:00:21]} axb4 {[%emt 0:00:00]} 10. axb4 {[%emt 0:00:30]} Rxa1 {[%emt 0:04:00]} 11. Bxa1 {[%emt 0:00:05]} Qd5 {[%emt 0:00:27]} 12. Qxd5 {[%emt 0:07:29]} Nxd5 {[%emt 0:00:56]} 13. exd4 {[%emt 0:00:25]} Nxb4 {[%emt 0:01:55]} 14. Kd1 {[%emt 0:00:30]} exd4 {[%emt 0:01:52]} 15. Bxd4 {[%emt 0:03:09]} Nd7 {[%emt 0:05:15]} 16. Bc4 {[%emt 0:01:42]} f6 {[%emt 0:05:02]} 17. Re1+ {[%emt 0:03:12]} Kd8 {[%emt 0:00:45]} 18. Be3 {[%emt 0:04:46]} Bxc5 {[%emt 0:08:54]} 19. d4 {[%emt 0:19:22]} Bd6 {[%emt 0:01:13]} 20. Nc3 {[%emt 0:00:54]} Nb6 {[%emt 0:01:52]} 21. Bf7 {[%emt 0:00:10]} N4d5 {[%emt 0:06:13]} 22. Ne4 {[%emt 0:01:32]} Kc7 {[%emt 0:11:03]} 23. Nxd6 {[%emt 0:03:44]} Kxd6 {[%emt 0:00:08]} 24. Kc2 {[%emt 0:03:23]} Rf8 {[%emt 0:08:11]} 25. Bh5 {[%emt 0:00:57]} Nxe3+ {[%emt 0:03:22]} 26. fxe3 {[%emt 0:02:11]} Nc4 {[%emt 0:00:35]} 27. e4 {[%emt 0:05:19]} Ra8 {[%emt 0:07:19]} 28. Bf7 {[%emt 0:10:12]} Na3+ {[%emt 0:03:21]} 29. Kb2 {[%emt 0:02:43]} Nb5 {[%emt 0:00:23]} 30. d5 {[%emt 0:03:00]} c5 {[%emt 0:00:43]} 31. Re3 {[%emt 0:00:13]} c4 {[%emt 0:05:06]} 0-1

[Event "FRA-chT Top 12 2019"]
[Site "Brest"]
[Date "2019.05.26"]
[Round "9.7"]
[White "Smith, Axel"]
[Black "Demuth, Adrien"]
[Result "1/2-1/2"]
[ECO "A13"]
[WhiteElo "2481"]
[BlackElo "2517"]
[Annotator "ChessBase"]
[PlyCount "92"]
[EventDate "2019.05.18"]
[EventType "team-tourn"]
[EventCountry "FRA"]
[SourceTitle "playchess.com"]
[Source "ChessBase"]
[SourceQuality "1"]
[TimeControl "40/5400+30:1800+30"]

1. Nf3 {[%emt 0:00:00]} Nf6 {[%emt 0:00:00]} 2. c4 {[%emt 0:00:06]} e6 {[%emt 0:00:18]} 3. g3 {[%emt 0:00:08]} d5 {[%emt 0:00:15]} 4. Bg2 {[%emt 0:00:03]} dxc4 {[%emt 0:01:32]} 5. Qa4+ {[%emt 0:00:07]} Nbd7 {[%emt 0:00:44]} 6. Qxc4 {[%emt 0:00:09]} a6 {[%emt 0:00:13]} 7. Qc2 {[%emt 0:00:39]} c5 {[%emt 0:01:41]} 8. Nc3 {[%emt 0:00:59]} Qc7 {[%emt 0:08:11]} 9. d4 {[%emt 0:00:24]} b6 {[%emt 0:05:24]} 10. Bf4 {[%emt 0:01:08]} Bd6 11. Bxd6 {[%emt 0:00:24]} Qxd6 {[%emt 0:03:43]} 12. Nd2 {[%emt 0:24:58]} Rb8 {[%emt 0:09:07]} 13. dxc5 {[%emt 0:01:45]} Qxc5 {[%emt 0:07:21]} 14. O-O {[%emt 0:03:11]} O-O {[%emt 0:00:23]} 15. Rac1 {[%emt 0:03:32]} Qe7 {[%emt 0:12:00]} 16. Rfd1 {[%emt 0:10:09]} Bb7 {[%emt 0:07:05]} 17. Bxb7 {[%emt 0:07:13]} Rxb7 {[%emt 0:00:04]} 18. Nde4 {[%emt 0:00:19]} b5 {[%emt 0:05:05]} 19. Qd3 {[%emt 0:04:09]} Nb6 {[%emt 0:21:27]} 20. Qd6 {[%emt 0:11:34]} Qxd6 {[%emt 0:04:32]} 21. Nxf6+ {[%emt 0:04:44]} gxf6 {[%emt 0:00:03]} 22. Rxd6 {[%emt 0:00:03]} Rc8 {[%emt 0:01:42]} 23. Rcd1 {[%emt 0:01:04]} Kg7 {[%emt 0:01:13]} 24. Rd8 {[%emt 0:11:18]} Rc4 {[%emt 0:01:05]} 25. a3 {[%emt 0:05:07]} b4 {[%emt 0:00:51]} 26. axb4 {[%emt 0:00:09]} Rxb4 {[%emt 0:00:04]} 27. R1d4 {[%emt 0:00:57]} Rxd4 {[%emt 0:02:43]} 28. Rxd4 {[%emt 0:00:01]} Nd7 {[%emt 0:00:45]} 29. Na4 {[%emt 0:04:08]} Ne5 {[%emt 0:00:53]} 30. Kf1 {[%emt 0:00:29]} f5 {[%emt 0:04:00]} 31. Ke1 {[%emt 0:00:57]} Nc6 {[%emt 0:00:47]} 32. Rc4 {[%emt 0:00:54]} Ne5 {[%emt 0:00:11]} 33. Rc5 {[%emt 0:01:08]} Rb4 {[%emt 0:01:01]} 34. Ra5 {[%emt 0:03:22]} Nc4 {[%emt 0:00:22]} 35. Rxa6 {[%emt 0:00:11]} Nxb2 {[%emt 0:00:06]} 36. Nxb2 {[%emt 0:00:19]} Rxb2 {[%emt 0:00:07]} 37. f3 {[%emt 0:00:55]} h6 {[%emt 0:00:35]} 38. Kf2 {[%emt 0:00:20]} Rb3 {[%emt 0:00:11]} 39. h3 {[%emt 0:00:20]} Rb5 {[%emt 0:00:09]} 40. Ra4 {[%emt 0:00:55]} h5 {[%emt 0:00:46]} 41. g4 {[%emt 0:30:33]} hxg4 {[%emt 0:30:06]} 42. hxg4 {[%emt 0:00:02]} fxg4 {[%emt 0:00:06]} 43. Rxg4+ {[%emt 0:00:02]} Kf6 {[%emt 0:00:05]} 44. Rf4+ {[%emt 0:00:05]} Kg7 {[%emt 0:00:01]} 45. Rg4+ {[%emt 0:00:05]} Kf6 {[%emt 0:00:03]} 46. Rf4+ {[%emt 0:00:03]} Ke5 1/2-1/2